fUSD/lending_fUSD_20260316
["ID","MTS","AMOUNT","RATE_DAILY","PERIOD"]
[408473456,1773697846035,-172.58490105,0.000169,2]
[408473457,1773697846045,-151.0,0.00016912,2]
[408473458,1773697846057,-4014.55138546,0.00016915,2]
[408473459,1773697846069,-500.0,0.00016921,2]
[408473460,1773697846079,-960.0,0.00016931,2]
[408473461,1773697846088,-500.0,0.00016932,2]
[408473462,1773697846098,-506.0,0.00016935,2]
[408473463,1773697846107,-1000.0,0.00016937,2]
[408473464,1773697846116,-1700.0,0.00016952,7]
[408473465,1773697846126,-1800.0,0.00016952,7]
[408473466,1773697846136,-700.0,0.00016952,7]
[408473467,1773697846145,-768.936649,0.00016966,2]
[408473468,1773697846155,-768.936649,0.00016966,2]
[408473469,1773697846164,-768.936649,0.00016966,2]
[408473470,1773697846173,-768.936649,0.00016966,2]
[408473471,1773697846182,-506.0,0.00016966,2]
[408473472,1773697846192,-989.3250665,0.00016969,2]
[408473473,1773697846201,-173.0,0.00016972,3]
[408473474,1773697846210,-500.57919258,0.00016973,2]
[408473475,1773697846219,-500.0,0.00016973,2]
[408473476,1773697846228,-500.0,0.00016973,2]
[408473477,1773697846237,-500.0,0.00016973,2]
[408473478,1773697846246,-501.14795082,0.00016973,2]
[408473479,1773697846255,-500.0,0.00016973,2]
[408473480,1773697846265,-500.0,0.00016973,2]
[408473481,1773697846275,-500.0,0.00016973,2]
[408473482,1773697846284,-502.66188252,0.00016973,2]
[408473483,1773697846294,-500.23347102,0.00016973,2]
[408473484,1773697846303,-162.60709647,0.00016973,2]
[408473485,1773697846312,-311.88705213,0.00016973,2]
[408473486,1773697846321,-500.42197752,0.00016973,2]
[408473487,1773697846330,-500.0,0.00016973,2]
[408473488,1773697846340,-500.0,0.00016973,2]
[408473489,1773697846349,-500.0,0.00016973,2]
[408473490,1773697846359,-500.0,0.00016973,2]
[408473491,1773697846368,-469.0,0.0001698,2]
[408473492,1773697846377,-469.0,0.00016982,2]
[408473493,1773697846387,-960.0,0.00016986,2]
[408473494,1773697846396,-150.0,0.00016989,2]
[408473495,1773697846406,-580.38492514,0.0001699,2]
[408473496,1773697846415,-151.0,0.00016997,2]
[408473497,1773697846425,-500.0,0.00016999,2]
[408473498,1773697846434,-500.0,0.00016999,2]
[408473499,1773697846443,-500.0,0.00016999,2]
[408473500,1773697846452,-500.0,0.00016999,2]
[408473501,1773697846461,-500.0,0.00016999,2]
[408473502,1773697846470,-500.0,0.00016999,2]
[408473503,1773697846479,-500.0,0.00016999,2]
[408473504,1773697846489,-500.0,0.00016999,2]
[408473505,1773697846498,-500.0,0.00016999,2]
[408473506,1773697846509,-500.0,0.00016999,2]
[408473507,1773697846519,-500.0,0.00016999,2]
[408473508,1773697846528,-500.0,0.00016999,2]
[408473509,1773697846539,-500.0,0.00016999,2]
[408473510,1773697846549,-500.0,0.00016999,2]
[408473511,1773697846559,-500.0,0.00016999,2]
[408473512,1773697846568,-500.0,0.00016999,2]
[408473513,1773697846578,-500.0,0.00016999,2]
[408473514,1773697846587,-500.0,0.00016999,2]
[408473515,1773697846595,-500.0,0.00016999,2]
[408473516,1773697846605,-500.0,0.00016999,2]
[408473517,1773697846614,-607.88103677,0.00016999,2]
[408473518,1773697846623,-500.0,0.00016999,2]
[408473519,1773697846633,-500.0,0.00016999,2]
[408473520,1773697846642,-500.0,0.00016999,2]
[408473521,1773697846651,-500.0,0.00016999,2]
[408473522,1773697846660,-500.0,0.00016999,2]
[408473523,1773697846669,-500.0,0.00016999,2]
[408473524,1773697846678,-500.0,0.00016999,2]
[408473525,1773697846687,-500.0,0.00016999,2]
[408473526,1773697846695,-500.0,0.00016999,2]
[408473527,1773697846704,-500.0,0.00016999,2]
[408473528,1773697846713,-500.0,0.00016999,2]
[408473529,1773697846722,-607.63172262,0.00016999,2]
[408473530,1773697846731,-500.0,0.00016999,2]
[408473531,1773697846740,-500.0,0.00016999,2]
[408473532,1773697846749,-500.0,0.00016999,2]
[408473533,1773697846758,-500.0,0.00016999,2]
[408473534,1773697846768,-467.87972842,0.00016999,2]
[408473535,1773697846777,-500.0,0.00016999,2]
[408473536,1773697846787,-500.0,0.00016999,2]
[408473537,1773697846795,-483.47431518,0.00016999,2]
[408473538,1773697846805,-508907.4388641,0.00017,2]
[408473539,1773697846821,-126182.26509341,0.00017,2]
[408473540,1773697846831,-83866.42204601,0.00017,2]
[408473541,1773697846840,-300.0,0.00017,2]
[408473542,1773697846849,-469.0,0.00017,2]
[408473543,1773697846859,-151.0,0.00017,2]
[408473544,1773697846868,-768.936649,0.00017,2]
[408473545,1773697846877,-768.936649,0.00017,2]
[408473546,1773697846887,-768.936649,0.00017,2]
[408473547,1773697846896,-768.936647,0.00017,2]
[408473548,1773697846906,-151.0,0.00017,2]
[408473549,1773697846915,-151.0,0.00017,2]
[408473550,1773697846924,-151.0,0.00017,2]
[408473551,1773697846935,-151.0,0.00017,2]
[408473552,1773697846946,-236.067627,0.00017,2]
[408473553,1773697846955,-236.067627,0.00017,2]
[408473554,1773697846965,-236.067627,0.00017,2]
[408473555,1773697846974,-236.067627,0.00017,2]
[408473556,1773697846984,-759.347535,0.00017,2]
[408473557,1773697846994,-759.347535,0.00017,2]
[408473558,1773697847003,-759.347535,0.00017,2]
[408473559,1773697847012,-759.347535,0.00017,2]
[408473560,1773697847022,-151.0,0.00017,2]
[408473561,1773697847032,-1112.901906,0.00017,2]
[408473562,1773697847041,-1112.901906,0.00017,2]
[408473563,1773697847049,-1112.901906,0.00017,2]
[408473564,1773697847163,-1112.901906,0.00017,2]
[408473565,1773697847178,-512.0,0.00017,2]
[408473566,1773697847188,-151.0,0.00017,2]
[408473567,1773697847197,-151.0,0.00017,2]
[408473568,1773697847206,-468.865553,0.00017,2]
[408473569,1773697847214,-468.865553,0.00017,2]
[408473570,1773697847224,-468.865553,0.00017,2]
[408473571,1773697847233,-468.865553,0.00017,2]
[408473572,1773697847242,-234.04,0.00017007,2]
[408473573,1773697847251,-469.0,0.00017012,2]
[408473574,1773697847260,-165.49,0.00017013,2]
[408473575,1773697847269,-18240.38869249,0.00017016,2]
[408473576,1773697847279,-1000.0,0.00017017,2]
[408473577,1773697847290,-469.0,0.00017037,2]
[408473578,1773697847300,-1000.0,0.00017037,2]
[408473579,1773697847310,-716.06497,0.00017038,2]
[408473580,1773697847322,-960.0,0.00017041,2]
[408473581,1773697847331,-165.49,0.00017054,2]
[408473582,1773697847342,-2000.0,0.00017056,2]
[408473583,1773697847351,-1037.3960832,0.00017056,2]
[408473584,1773697847360,-2222.39,0.00017058,2]
[408473585,1773697847369,-10034.10715789,0.00017064,2]
[408473586,1773697847380,-469.0,0.00017068,2]
[408473587,1773697847389,-1364.00891727,0.0001707,2]
[408473588,1773697847401,-162.15276709,0.00017074,2]
[408473589,1773697847411,-506.0,0.00017075,2]
[408473590,1773697847420,-469.0,0.00017084,2]
[408473591,1773697847431,-878.37877314,0.00017089,2]
[408473592,1773697847442,-1103.31981501,0.00017089,2]
[408473593,1773697847451,-1000.0,0.00017089,2]
[408473594,1773697847460,-1003.22825721,0.00017089,2]
[408473595,1773697847471,-1000.0,0.00017089,2]
[408473596,1773697847480,-960.0,0.00017096,2]
[408473597,1773697847489,-11453.54373492,0.000171,2]
[408473598,1773697847499,-151.0,0.000171,2]
[408473599,1773697847510,-297.723683,0.000171,2]
[408473600,1773697847519,-151.0,0.000171,2]
[408473601,1773697847528,-151.0,0.000171,2]
[408473602,1773697847537,-236.067627,0.000171,2]
[408473603,1773697847547,-236.067627,0.000171,2]
[408473604,1773697847556,-236.067627,0.000171,2]
[408473605,1773697847565,-236.067624,0.000171,2]
[408473606,1773697847575,-759.347535,0.000171,2]
[408473607,1773697847584,-759.347535,0.000171,2]
[408473608,1773697847593,-759.347535,0.000171,2]
[408473609,1773697847603,-759.347536,0.000171,2]
[408473610,1773697847611,-151.0,0.000171,2]
[408473611,1773697847621,-151.0,0.000171,2]
[408473612,1773697847631,-468.865553,0.000171,2]
[408473613,1773697847641,-468.865553,0.000171,2]
[408473614,1773697847650,-468.865553,0.000171,2]
[408473615,1773697847659,-468.865547,0.000171,2]
[408473616,1773697847668,-1000.0,0.00017101,2]
[408473617,1773697847677,-469.0,0.00017103,2]
[408473618,1773697847687,-506.0,0.00017107,2]
[408473619,1773697847696,-500.0,0.00017117,2]
[408473620,1773697847706,-1035.537839,0.00017118,7]
[408473621,1773697847717,-4297.56440892,0.00017122,2]
[408473622,1773697847727,-469.0,0.00017123,2]
[408473623,1773697847736,-1000.0,0.00017136,2]
[408473624,1773697847746,-960.0,0.0001715,2]
[408473625,1773697847755,-150.0,0.00017154,2]
[408473626,1773697847765,-469.0,0.00017156,2]
[408473627,1773697847775,-151.0,0.00017156,2]
[408473628,1773697847784,-1112.901906,0.00017156,2]
[408473629,1773697847793,-1112.901906,0.00017156,2]
[408473630,1773697847802,-1112.901906,0.00017156,2]
[408473631,1773697847811,-1112.901913,0.00017156,2]
[408473632,1773697847821,-2000.0,0.00017161,2]
[408473633,1773697847831,-151.0,0.00017161,2]
[408473634,1773697847840,-1000.0,0.00017161,2]
[408473635,1773697847849,-469.0,0.00017167,2]
[408473636,1773697847858,-1000.0,0.0001717,2]
[408473637,1773697847867,-1000.0,0.0001717,2]
[408473638,1773697847878,-600.89763286,0.0001717,2]
[408473639,1773697847887,-469.0,0.00017191,2]
[408473640,1773697847897,-960.0,0.00017205,2]
[408473641,1773697847906,-1000.0,0.0001721,2]
[408473642,1773697847916,-469.0,0.00017215,2]
[408473643,1773697847926,-168.0,0.00017234,2]
[408473644,1773697847935,-716.06497,0.00017238,2]
[408473645,1773697847945,-506.0,0.00017245,2]
[408473646,1773697847954,-960.0,0.0001726,2]
[408473647,1773697847964,-694976.29498918,0.0001726,2]
[408473648,1773697847979,-121828.54431091,0.0001726,2]
[408473649,1773697847994,-113924.91847943,0.0001726,2]
[408473650,1773697848009,-3288.85113054,0.0001726,2]
[408473651,1773697848029,-151.0,0.00016116,2]
[408473652,1773697848039,-10710.75101147,0.0001726,2]
[408473653,1773697848177,-151.0,0.00013699,2]
[408473654,1773697848186,-151.0,0.0001499,2]
[408473655,1773697848195,-151.0,0.00016116,2]
[408473656,1773697848205,-151.0,0.00016876,2]
[408473657,1773697848215,-3399.41872024,0.0001726,2]
[408473658,1773697848233,-6160.09076886,0.0001726,2]
[408473659,1773697848244,-295.5205,0.0001726,2]
[408473660,1773697848255,-3616.88726221,0.0001726,2]
[408473661,1773697848266,-23999.55874243,0.0001726,2]
[408473662,1773697848288,-151.0,0.00016876,2]
[408473663,1773697848297,-892.56691962,0.0001726,2]
[408473666,1773698211256,160.46,6.808e-05,2]
[408473667,1773698211471,160.46,7.564e-05,2]
[408473668,1773698211708,160.46,8.32e-05,2]
[408473669,1773698211962,160.46,9.077e-05,2]
[408473670,1773698472896,90000.0,4.978e-05,120]
[408473671,1773698530332,174.0,4.978e-05,3]
[408473673,1773698588052,175.0,4.978e-05,3]
[408473819,1773699031614,-250.0,9.833e-05,2]
[408473820,1773699031624,-160.46,9.833e-05,2]
[408473821,1773699031633,-250.0,9.964e-05,2]
[408473822,1773699031644,-185.49461945,0.0001,2]
[408473823,1773699031655,-285.76800296,0.0001,2]
[408473825,1773699031665,-160.46,0.0001059,2]
[408473827,1773699031675,-250.0,0.00010816,2]
[408473829,1773699031684,-160.46,0.00011346,2]
[408473830,1773699031694,-500.0,0.00011544,2]
[408473831,1773699031704,-723.45146027,0.0001187,2]
[408473833,1773699031722,-1000.0,0.0001187,2]
[408473835,1773699031734,-110.01853973,0.0001187,2]
[408473838,1773699031743,-500.0,0.00011973,2]
[408473839,1773699031753,-201.48617448,0.00011982,2]
[408473842,1773699031766,-100.51382552,0.00011982,2]
[408473844,1773699031776,-150.0,0.00011982,2]
[408473846,1773699031786,-300.0,0.00011982,2]
[408473848,1773699031795,-1200.0,0.00011982,2]
[408473850,1773699031804,-300.0,0.00011982,2]
[408473851,1773699031813,-151.0,0.00011983,2]
[408473853,1773699031822,-151.0,0.00011983,2]
[408473855,1773699031831,-151.0,0.00011983,2]
[408473858,1773699031840,-500.0,0.00011983,2]
[408473859,1773699031850,-151.0,0.00011983,2]
[408473861,1773699031859,-500.0,0.00011983,2]
[408473864,1773699031868,-151.0,0.00011983,2]
[408473865,1773699031877,-358.50471421,0.00011983,2]
[408473867,1773699031886,-152.28282942,0.00011983,2]
[408473869,1773699031896,-151.0,0.00011983,2]
[408473871,1773699031905,-151.0,0.00011983,2]
[408473872,1773699031914,-151.0,0.00011983,2]
[408473873,1773699031923,-151.0,0.00011983,2]
[408473874,1773699031933,-151.0,0.00011983,2]
[408473875,1773699031943,-151.0,0.00011983,2]
[408473876,1773699031953,-151.0,0.00011983,2]
[408473877,1773699031963,-151.0,0.00011983,2]
[408473878,1773699031972,-151.0,0.00011983,2]
[408473879,1773699031981,-151.0,0.00011983,2]
[408473880,1773699031990,-151.0,0.00011983,2]
[408473881,1773699031999,-151.0,0.00011983,2]
[408473882,1773699032016,-151.0,0.00011983,2]
[408473883,1773699032028,-430.68,0.00011989,2]
[408473884,1773699032037,-150.99,0.00011989,2]
[408473885,1773699032046,-4999.99,0.00011989,2]
[408473886,1773699032056,-9999.99,0.00011989,2]
[408473887,1773699032065,-299.99,0.00011989,2]
[408473888,1773699032075,-9999.99,0.00011989,2]
[408473889,1773699032083,-9999.99,0.00011989,2]
[408473890,1773699032093,-9999.99,0.00011989,2]
[408473891,1773699032102,-999.99,0.00011989,2]
[408473892,1773699032112,-1208.2,0.00011989,2]
[408473893,1773699032122,-10695.07,0.00011989,2]
[408473894,1773699032131,-70001.05,0.00011989,2]
[408473895,1773699032140,-5344.92,0.00011989,2]
[408473896,1773699032150,-9345.62,0.00011989,2]
[408473897,1773699032160,-150.99,0.00011989,2]
[408473898,1773699032170,-500.0,0.00011989,2]
[408473899,1773699032180,-14524.52243768,0.0001199,2]
[408473900,1773699032190,-15582.3504528,0.00012002,2]
[408473901,1773699032199,-160.46,0.00012102,2]
[408473902,1773699032209,-2000.0,0.00012188,2]
[408473903,1773699032218,-150.0,0.00012216,2]
[408473904,1773699032227,-1600.0,0.00012216,2]
[408473905,1773699032237,-1868.06,0.00012656,2]
[408473906,1773699032247,-159.39,0.00012703,2]
[408473907,1773699032256,-160.46,0.00012859,2]
[408473908,1773699032267,-15582.35045276,0.0001288,2]
[408473909,1773699032278,-198.52,0.00012949,2]
[408473910,1773699032290,-500.0,0.0001301,2]
[408473911,1773699032304,-500.0,0.0001301,2]
[408473912,1773699032314,-321.14350054,0.0001301,2]
[408473913,1773699032325,-168.8375525,0.0001301,2]
[408473914,1773699032335,-500.0,0.0001301,2]
[408473915,1773699032345,-500.0,0.0001301,2]
[408473916,1773699032355,-578.6287337,0.0001301,2]
[408473917,1773699032364,-500.0,0.0001301,2]
[408473918,1773699032374,-500.0,0.0001301,2]
[408473919,1773699032384,-500.0,0.0001301,2]
[408473920,1773699032393,-416.38560716,0.0001301,2]
[408473921,1773699032403,-500.0,0.0001301,2]
[408473922,1773699032412,-500.0,0.0001301,2]
[408473923,1773699032421,-500.0,0.0001301,2]
[408473924,1773699032430,-500.0,0.0001301,2]
[408473925,1773699032440,-500.0,0.0001301,2]
[408473926,1773699032449,-406.65419192,0.0001301,2]
[408473927,1773699032459,-10927.5527,0.00013011,2]
[408473928,1773699032468,-2500.0,0.00013011,2]
[408473929,1773699032478,-714.21757068,0.00013011,2]
[408473930,1773699032487,-7197.24677521,0.00013011,2]
[408473931,1773699032496,-156.0,0.00013022,2]
[408473932,1773699032505,-1611.58665338,0.00013054,2]
[408473933,1773699032515,-255.0,0.0001306,2]
[408473934,1773699032524,-170.0,0.00013084,2]
[408473935,1773699032536,-321.6339966,0.00013087,2]
[408473936,1773699032545,-386.92328343,0.00013101,2]
[408473937,1773699032554,-63809.39217471,0.00013111,2]
[408473938,1773699032571,-55868.82767907,0.00013111,2]
[408473939,1773699032594,-2916.85001972,0.00013111,2]
[408473942,1773699037569,-394.44573083,0.00013111,2]
[408473943,1773699037631,-1126.83071643,0.00013111,2]
[408473944,1773699037642,-471.87366345,0.00013111,2]
[408473945,1773699037681,-331.43,0.00013111,2]
[408473952,1773699039976,-42958.16193551,0.00013111,2]
[408473953,1773699039988,-4085.39985223,0.00013111,2]
[408473954,1773699039999,-651.84043958,0.00013111,2]
[408473955,1773699040067,-336.030554,0.00013111,2]
[408473956,1773699040237,-442.6017968,0.0001301,2]
[408473957,1773699040247,-156.56551624,0.0001301,2]
[408473958,1773699040256,-315.52813557,0.00013111,2]
[408473961,1773699042731,-136958.87461896,0.00013111,2]
[408473962,1773699042743,-57625.94509915,0.00013111,2]
[408473963,1773699042755,-60023.39549126,0.00013111,2]
[408473971,1773699045890,-56798.5267866,0.00013111,2]
[408473972,1773699045905,-397295.98756339,0.00013111,2]
[408473973,1773699045916,-18887.74127914,0.00013111,2]
[408473976,1773699045959,-6014.59650707,0.00013111,2]
[408473977,1773699045970,-5249.4525,0.00013111,2]
[408473991,1773700231778,-685.86632813,0.000107,5]
[408473992,1773700231791,-795.14842387,0.000107,5]
[408473993,1773700231842,-4051.985248,0.000107,5]
[408473994,1773700231852,-250.0,0.000107,2]
[408473995,1773700231862,-238.0,0.000107,2]
[408473996,1773700231872,-250.0,0.00010815,2]
[408473997,1773700231881,-500.0,0.000111,2]
[408473998,1773700231891,-500.0,0.000111,2]
[408473999,1773700231901,-500.0,0.000111,2]
[408474000,1773700231910,-303.58556021,0.000111,2]
[408474001,1773700231920,-1200.0,0.00011175,2]
[408474002,1773700231929,-206.05934779,0.00011185,2]
[408474003,1773700231939,-1852.42,0.0001141,2]
[408474004,1773700231948,-150.32,0.00011429,2]
[408474005,1773700231958,-2319.99,0.00011507,2]
[408474006,1773700231967,-200.0,0.00011594,2]
[408474007,1773700231976,-3474.96,0.00011594,2]
[408474008,1773700231986,-206.05934779,0.0001167,2]
[408474009,1773700231995,-200.0,0.00011763,2]
[408474010,1773700232004,-150.0,0.00011769,2]
[408474011,1773700232013,-271.27,0.0001177,2]
[408474012,1773700232023,-8445.54,0.0001177,2]
[408474013,1773700232032,-150.99,0.0001177,2]
[408474014,1773700232041,-9999.99,0.0001177,2]
[408474015,1773700232050,-4109.15,0.0001177,2]
[408474016,1773700232060,-150.99,0.0001177,2]
[408474017,1773700232069,-999.99,0.0001177,2]
[408474018,1773700232078,-499.99,0.0001177,2]
[408474019,1773700232088,-9999.99,0.0001177,2]
[408474020,1773700232097,-7591.86,0.0001177,2]
[408474021,1773700232107,-517.08,0.0001177,2]
[408474022,1773700232117,-299.99,0.0001177,2]
[408474023,1773700232127,-9999.99,0.0001177,2]
[408474024,1773700232136,-9999.99,0.0001177,2]
[408474025,1773700232145,-9999.99,0.0001177,2]
[408474026,1773700232155,-14684.76,0.0001177,2]
[408474027,1773700232164,-250.0,0.0001177,2]
[408474028,1773700232174,-416.0,0.00011865,2]
[408474029,1773700232184,-228.0,0.00011865,2]
[408474030,1773700232193,-2323.32,0.00011918,2]
[408474031,1773700232203,-271.27,0.00012044,2]
[408474032,1773700232212,-328.0,0.00012058,2]
[408474033,1773700232221,-150.32,0.00012064,2]
[408474034,1773700232230,-153.0,0.00012092,2]
[408474035,1773700232240,-246.0,0.00012143,2]
[408474036,1773700232249,-1000.0,0.00012152,2]
[408474037,1773700232258,-535.0,0.00012173,2]
[408474038,1773700232271,-1680.0,0.00012293,2]
[408474039,1773700232289,-202.08730065,0.00012311,2]
[408474040,1773700232298,-271.28,0.00012318,2]
[408474041,1773700232307,-500.0,0.00012399,2]
[408474042,1773700232316,-287.0,0.00012672,2]
[408474043,1773700232326,-150.32,0.00012699,2]
[408474044,1773700232335,-500.0,0.00012699,2]
[408474045,1773700232344,-158.82,0.00012786,2]
[408474046,1773700232354,-1228.537864,0.000128,2]
[408474047,1773700232363,-13762.02155629,0.000128,2]
[408474048,1773700232372,-2457.4924,0.00012811,2]
[408474049,1773700232381,-255.0,0.0001284,2]
[408474050,1773700232391,-2500.0,0.00012844,2]
[408474051,1773700232400,-9588.95724247,0.00012863,2]
[408474052,1773700232409,-11605.16030736,0.00012873,2]
[408474053,1773700232418,-730.71466518,0.00012873,2]
[408474054,1773700232428,-587.22064705,0.00012873,2]
[408474055,1773700232438,-1410.13832169,0.00012873,2]
[408474056,1773700232447,-4102.41615399,0.00012873,2]
[408474057,1773700232456,-1483.52562674,0.00012911,2]
[408474058,1773700232465,-897.56557497,0.00012911,2]
[408474059,1773700232474,-248.52847693,0.00012911,2]
[408474060,1773700232484,-257.94885562,0.00012935,2]
[408474061,1773700232494,-307.60092342,0.00012942,2]
[408474062,1773700232503,-500.0,0.00012942,2]
[408474063,1773700232513,-322.96157688,0.00012942,2]
[408474064,1773700232523,-212.93173413,0.00012942,2]
[408474065,1773700232532,-336.16601881,0.00012942,2]
[408474066,1773700232542,-175.40319263,0.00012942,2]
[408474067,1773700232551,-974.01647141,0.00012942,2]
[408474068,1773700232561,-974.01647141,0.00012942,2]
[408474069,1773700232571,-974.01647141,0.00012942,2]
[408474070,1773700232580,-974.01647141,0.00012942,2]
[408474071,1773700232589,-974.01647141,0.00012942,2]
[408474072,1773700232599,-974.01647141,0.00012942,2]
[408474073,1773700232609,-974.01647141,0.00012942,2]
[408474074,1773700232618,-974.01647141,0.00012942,2]
[408474075,1773700232630,-974.01647141,0.00012942,2]
[408474076,1773700232640,-974.01647141,0.00012942,2]
[408474077,1773700232649,-974.01647141,0.00012942,2]
[408474078,1773700232658,-974.01647141,0.00012942,2]
[408474079,1773700232668,-974.01647141,0.00012942,2]
[408474080,1773700232677,-974.01647141,0.00012942,2]
[408474081,1773700232686,-974.01647141,0.00012942,2]
[408474082,1773700232695,-974.01647141,0.00012942,2]
[408474083,1773700232704,-974.01647141,0.00012942,2]
[408474084,1773700232714,-974.01647141,0.00012942,2]
[408474085,1773700232723,-974.01647141,0.00012942,2]
[408474086,1773700232732,-974.01647141,0.00012942,2]
[408474087,1773700232742,-974.01647141,0.00012942,2]
[408474088,1773700232752,-974.01647141,0.00012942,2]
[408474089,1773700232761,-974.01647141,0.00012942,2]
[408474090,1773700232771,-974.01647141,0.00012942,2]
[408474091,1773700232789,-974.01647141,0.00012942,2]
[408474092,1773700232800,-974.01647141,0.00012942,2]
[408474093,1773700232810,-974.01647141,0.00012942,2]
[408474094,1773700232820,-974.01647141,0.00012942,2]
[408474095,1773700232830,-974.01647141,0.00012942,2]
[408474096,1773700232840,-974.01647141,0.00012942,2]
[408474097,1773700232849,-974.01647141,0.00012942,2]
[408474098,1773700232860,-974.01647141,0.00012942,2]
[408474099,1773700232870,-974.01647141,0.00012942,2]
[408474100,1773700232880,-974.01647141,0.00012942,2]
[408474101,1773700232890,-974.01647141,0.00012942,2]
[408474102,1773700232900,-974.01647141,0.00012942,2]
[408474103,1773700232910,-974.01647141,0.00012942,2]
[408474104,1773700232920,-974.01647141,0.00012942,2]
[408474105,1773700232929,-974.01647141,0.00012942,2]
[408474106,1773700232940,-974.01647141,0.00012942,2]
[408474107,1773700232950,-974.01647141,0.00012942,2]
[408474108,1773700232960,-974.01647141,0.00012942,2]
[408474109,1773700232969,-974.01647141,0.00012942,2]
[408474110,1773700232979,-974.01647141,0.00012942,2]
[408474111,1773700232989,-974.01647141,0.00012942,2]
[408474112,1773700232999,-974.01647141,0.00012942,2]
[408474113,1773700233008,-974.01647141,0.00012942,2]
[408474114,1773700233018,-974.01647141,0.00012942,2]
[408474115,1773700233027,-974.01647141,0.00012942,2]
[408474116,1773700233037,-966.52403702,0.00012942,2]
[408474117,1773700233047,-966.52403702,0.00012942,2]
[408474118,1773700233056,-966.52403702,0.00012942,2]
[408474119,1773700233066,-966.52403702,0.00012942,2]
[408474120,1773700233075,-966.52403702,0.00012942,2]
[408474121,1773700233084,-966.52403702,0.00012942,2]
[408474122,1773700233093,-966.52403702,0.00012942,2]
[408474123,1773700233103,-966.52403702,0.00012942,2]
[408474124,1773700233112,-966.52403702,0.00012942,2]
[408474125,1773700233122,-966.52403702,0.00012942,2]
[408474126,1773700233131,-966.52403702,0.00012942,2]
[408474127,1773700233140,-966.52403702,0.00012942,2]
[408474128,1773700233150,-966.52403702,0.00012942,2]
[408474129,1773700233163,-966.52403702,0.00012942,2]
[408474130,1773700233173,-966.52403702,0.00012942,2]
[408474131,1773700233182,-966.52403702,0.00012942,2]
[408474132,1773700233193,-966.52403702,0.00012942,2]
[408474133,1773700233203,-966.52403702,0.00012942,2]
[408474134,1773700233213,-966.52403702,0.00012942,2]
[408474135,1773700233223,-966.52403702,0.00012942,2]
[408474136,1773700233234,-966.52403702,0.00012942,2]
[408474137,1773700233245,-966.52403702,0.00012942,2]
[408474138,1773700233256,-966.52403702,0.00012942,2]
[408474139,1773700233266,-966.52403702,0.00012942,2]
[408474140,1773700233276,-966.52403702,0.00012942,2]
[408474141,1773700233286,-966.52403702,0.00012942,2]
[408474142,1773700233296,-966.52403702,0.00012942,2]
[408474143,1773700233307,-966.52403702,0.00012942,2]
[408474144,1773700233317,-966.52403702,0.00012942,2]
[408474145,1773700233326,-966.52403701,0.00012942,2]
[408474146,1773700233336,-966.52403701,0.00012942,2]
[408474147,1773700233346,-966.52403701,0.00012942,2]
[408474148,1773700233355,-966.52403701,0.00012942,2]
[408474149,1773700233365,-966.52403701,0.00012942,2]
[408474150,1773700233376,-966.52403701,0.00012942,2]
[408474151,1773700233386,-966.52403701,0.00012942,2]
[408474152,1773700233395,-966.52403701,0.00012942,2]
[408474153,1773700233406,-966.52403701,0.00012942,2]
[408474154,1773700233416,-500.0,0.00012944,2]
[408474155,1773700233426,-436.1623728,0.00012944,2]
[408474156,1773700233435,-500.0,0.00012944,2]
[408474157,1773700233444,-500.0,0.00012944,2]
[408474158,1773700233454,-500.0,0.00012944,2]